{"text_format":"3","workbook":"xlsx","n_sheets":2,"sheets":["START","TIDKORT PER ÅR"],"not_rendered":{"defined_names":2},"read":"whole","date_system":"1900"}

{"sheet":"START","index":0,"n_rows":8,"n_cols":2,"rows_kept":8}
[null,"OM DEN HÄR MALLEN"]
[null,"Skriv upp dina timmar per dag, vecka, månad och år i det här medarbetares tidkort."]
[null,"Fyll i grundläggande uppgifter som medarbetarens namn, chefens namn, e-postadress och telefonnummer. "]
[null,"Fyll i dina timmar i varje månads tabell. Logga timmar som ordinarie arbetstid och övertid i separata kolumner för varje veckodag i varje vecka. "]
[null,"Antal timmar för total arbetstid, ordinarie arbetstid och övertid beräknas automatiskt. "]
[null,"Anteckningar:"]
[null,"Ytterligare anvisningar finns i kolumn A på kalkylbladet TIMMAR PER ÅR. Den här texten har avsiktligt dolts. Om du vill ta bort texten markerar du kolumn A och väljer sedan TA BORT. Om du vill att texten ska visas markerar du kolumn A och ändrar sedan teckenfärg. "]
[null,"Om du vill läsa mer om tabeller trycker du på SKIFT och sedan på F10 i en tabell, väljer alternativet TABELL och väljer sedan ALTERNATIV TEXT."]

{"sheet":"TIDKORT PER ÅR","index":1,"n_rows":132,"n_cols":15,"rows_kept":132,"merged":[[0,1,0,2],[0,4,0,14],[10,6,10,7],[21,6,21,7],[32,6,32,7],[33,4,33,14],[43,6,43,7],[54,6,54,7],[65,6,65,7],[66,4,66,14],[76,6,76,7],[87,6,87,7],[98,6,98,7],[99,4,99,14],[109,6,109,7],[120,6,120,7],[131,6,131,7]]}
["Skapa en tidrapport per dag, vecka, månad eller år i det här kalkylbladet. \nInstruktioner om hur du använder den här arbetsboken finns i cellerna i den här kolumnen. Nedåtpil för att komma igång.\nRubriken för det här kalkylbladet finns i cellen till höger och kvartalsrubriken för januari, februari, mars finns i cell E1.","MEDARBETARES \nTIDKORT",null,null,"Januari, februari, mars      Medarbetares tidkort: Per dag, vecka, månad, år"]
["Ange medarbetarens namn i cell C2 och timmar under ordinarie tid och övertid i tabellen för januari som börjar i cell E2.","Medarbetarens namn:",null,null,"Januari","Vecka 1","Övertid","Vecka 2","Övertid  ","Vecka 3","Övertid   ","Vecka 4","Övertid    ","Vecka 5","Övertid     "]
["Ange chefens namn i cell C3.","Chef:",null,null,"Måndag",{"v":8,"d":"8.0"}]
["Ange e-postadress i cell C4.","E-post:",null,null,"Tisdag",{"v":8,"d":"8.0"},{"v":2,"d":"2.0"}]
["Ange telefonnummer i cell C5. Fler anvisningar finns i cell A9.","Telefon:",null,null,"Onsdag"]
[{"$nulls":4},"Torsdag"]
[{"$nulls":4},"Fredag"]
[{"$nulls":4},"Lördag"]
["Totalt antal timmar ordinarie tid per år beräknas automatiskt i cell C9.","Ordinarie arbetstid:",{"$f":"OrdinareTim","v":31},null,"Söndag"]
["Totalt antal timmar övertid per år beräknas automatiskt i cell C10.","Övertid:",{"$f":"Övertid_tim","v":4},null,"Totalt antal timmar per vecka",{"$f":"SUM(F3:F9)","v":{"v":16,"d":"16.0"}},{"v":2,"d":"2.0"},{"v":0,"d":"0.0"},{"v":0,"d":"0.0"},{"v":0,"d":"0.0"},{"v":0,"d":"0.0"},{"v":0,"d":"0.0"},{"v":0,"d":"0.0"},{"v":0,"d":"0.0"},{"v":0,"d":"0.0"}]
["Totalt antal timmar per år beräknas automatiskt i cell C11. Januaris totala antal timmar ordinarie arbetstid i cell F11 och januaris totala antal timmar övertid i cell I11 beräknas automatiskt. Fler anvisningar finns i cell A13.","Summa",{"$f":"OrdinareTim+Övertid_tim","v":35},null,{"$f":"TEXT(DATEVALUE(Januari[[#Headers],[Januari]]&\"  \"&YEAR(TODAY())),\"MMM.\")&\" summa: Normal arbetstid\"","v":"jan. summa: Normal arbetstid"},{"$f":"SUM(Januari[Vecka 1],Januari[Vecka 2],Januari[Vecka 3],Januari[Vecka 4],Januari[Vecka 5])","v":{"v":16,"d":"16.0"}},{"$f":"TEXT(DATEVALUE(Januari[[#Headers],[Januari]]&\"  \"&YEAR(TODAY())),\"MMM.\")&\" summa: Övertid\"","v":"jan. summa: Övertid"},null,{"$f":"SUM(Januari[Övertid],Januari[[Övertid  ]],Januari[[Övertid   ]],Januari[[Övertid    ]],Januari[[Övertid     ]])","v":{"v":2,"d":"2.0"}}]
[]
["Ange timmar på ordinarie arbetstid och på övertid i tabellen för februari som börjar i cell E13. Fler anvisningar finns i cell A22.",{"$nulls":3},"Februari","Vecka 1","Övertid","Vecka 2","Övertid  ","Vecka 3","Övertid   ","Vecka 4","Övertid    ","Vecka 5","Övertid     "]
[{"$nulls":4},"Måndag",{"v":8,"d":"8.0"}]
[{"$nulls":4},"Tisdag",{"v":7,"d":"7.0"},{"v":2,"d":"2.0"}]
[{"$nulls":4},"Onsdag"]
[{"$nulls":4},"Torsdag"]
[{"$nulls":4},"Fredag"]
[{"$nulls":4},"Lördag"]
[{"$nulls":4},"Söndag"]
[{"$nulls":4},"Totalt antal timmar per vecka",{"$f":"SUM(F14:F20)","v":{"v":15,"d":"15.0"}},{"v":2,"d":"2.0"},{"v":0,"d":"0.0"},{"v":0,"d":"0.0"},{"v":0,"d":"0.0"},{"v":0,"d":"0.0"},{"v":0,"d":"0.0"},{"v":0,"d":"0.0"},{"v":0,"d":"0.0"},{"v":0,"d":"0.0"}]
["Februaris totala antal timmar ordinarie arbetstid i cell F22 och februaris totala antal timmar övertid i cell I22 beräknas automatiskt. Fler anvisningar finns i cell A24.",{"$nulls":3},{"$f":"TEXT(DATEVALUE(Februari[[#Headers],[Februari]]&\"  \"&YEAR(TODAY())),\"MMM.\")&\" summa: Normal arbetstid\"","v":"feb. summa: Normal arbetstid"},{"$f":"SUM(Februari[Vecka 1],Februari[Vecka 2],Februari[Vecka 3],Februari[Vecka 4],Februari[Vecka 5])","v":{"v":15,"d":"15.0"}},{"$f":"TEXT(DATEVALUE(Februari[[#Headers],[Februari]]&\" \"&YEAR(TODAY())),\"MMM.\")&\" summa: Övertid\"","v":"feb. summa: Övertid"},null,{"$f":"SUM(Februari[Övertid],Februari[[Övertid  ]],Februari[[Övertid   ]],Februari[[Övertid    ]],Februari[[Övertid     ]])","v":{"v":2,"d":"2.0"}}]
[]
["Ange timmar på ordinarie arbetstid och på övertid i tabellen för mars som börjar i cell E24. Fler anvisningar finns i cell A33.",{"$nulls":3},"Mars","Vecka 1","Övertid","Vecka 2","Övertid ","Vecka 3","Övertid  ","Vecka 4","Övertid    ","Vecka 5","Övertid     "]
[{"$nulls":4},"Måndag"]
[{"$nulls":4},"Tisdag"]
[{"$nulls":4},"Onsdag"]
[{"$nulls":4},"Torsdag"]
[{"$nulls":4},"Fredag"]
[{"$nulls":4},"Lördag"]
[{"$nulls":4},"Söndag"]
[{"$nulls":4},"Totalt antal timmar per vecka",{"$f":"SUM(F25:F31)","v":{"v":0,"d":"0.0"}},{"v":0,"d":"0.0"},{"v":0,"d":"0.0"},{"v":0,"d":"0.0"},{"v":0,"d":"0.0"},{"v":0,"d":"0.0"},{"v":0,"d":"0.0"},{"v":0,"d":"0.0"},{"v":0,"d":"0.0"},{"v":0,"d":"0.0"}]
["Mars totala antal timmar ordinarie arbetstid i cell F33 och mars totala antal timmar övertid i cell I33 beräknas automatiskt.",{"$nulls":3},{"$f":"TEXT(DATEVALUE(Mars[[#Headers],[Mars]]&\" \"&YEAR(TODAY())),\"MMM.\")&\" summa: Normal arbetstid\"","v":"mar. summa: Normal arbetstid"},{"$f":"SUM(Mars[Vecka 1],Mars[Vecka 2],Mars[Vecka 3],Mars[Vecka 4],Mars[Vecka 5])","v":{"v":0,"d":"0.0"}},{"$f":"TEXT(DATEVALUE(Mars[[#Headers],[Mars]]&\" \"&YEAR(TODAY())),\"MMM.\")&\" summa: Övertid\"","v":"mar. summa: Övertid"},null,{"$f":"SUM(Mars[Övertid],Mars[[Övertid ]],Mars[[Övertid  ]],Mars[[Övertid    ]],Mars[[Övertid     ]])","v":{"v":0,"d":"0.0"}}]
["Rubriken för det andra kvartalet, april, maj, juni, finns i cell E34. ",{"$nulls":3},"April, maj, juni      Medarbetares tidkort: Per dag, vecka, månad, år"]
["Ange timmar på ordinarie arbetstid och på övertid i tabellen för april som börjar i cell E35. Fler anvisningar finns i cell A44.",{"$nulls":3},"April","Vecka 1","Övertid","Vecka 2","Övertid  ","Vecka 3","Övertid   ","Vecka 4","Övertid    ","Vecka 5","Övertid     "]
[{"$nulls":4},"Måndag"]
[{"$nulls":4},"Tisdag"]
[{"$nulls":4},"Onsdag"]
[{"$nulls":4},"Torsdag"]
[{"$nulls":4},"Fredag"]
[{"$nulls":4},"Lördag"]
[{"$nulls":4},"Söndag"]
[{"$nulls":4},"Totalt antal timmar per vecka",{"$f":"SUM(F36:F42)","v":{"v":0,"d":"0.0"}},{"v":0,"d":"0.0"},{"v":0,"d":"0.0"},{"v":0,"d":"0.0"},{"v":0,"d":"0.0"},{"v":0,"d":"0.0"},{"v":0,"d":"0.0"},{"v":0,"d":"0.0"},{"v":0,"d":"0.0"},{"v":0,"d":"0.0"}]
["Aprils totala antal timmar ordinarie arbetstid i cell F44 och aprils totala antal timmar övertid i cell I44 beräknas automatiskt. Fler anvisningar finns i cell A46.",{"$nulls":3},{"$f":"TEXT(DATEVALUE(April[[#Headers],[April]]&\" \"&YEAR(TODAY())),\"MMM.\")&\" summa: Normal arbetstid\"","v":"apr. summa: Normal arbetstid"},{"$f":"SUM(April[Vecka 1],April[Vecka 2],April[Vecka 3],April[Vecka 4],April[Vecka 5])","v":{"v":0,"d":"0.0"}},{"$f":"TEXT(DATEVALUE(April[[#Headers],[April]]&\" \"&YEAR(TODAY())),\"MMM.\")&\" summa: Övertid\"","v":"apr. summa: Övertid"},null,{"$f":"SUM(April[Övertid],April[[Övertid  ]],April[[Övertid   ]],April[[Övertid    ]],April[[Övertid     ]])","v":{"v":0,"d":"0.0"}}]
[]
["Ange timmar på ordinarie arbetstid och på övertid i tabellen för maj som börjar i cell E46. Fler anvisningar finns i cell A55.",{"$nulls":3},"Maj","Vecka 1","Övertid","Vecka 2","Övertid  ","Vecka 3","Övertid   ","Vecka 4","Övertid    ","Vecka 5","Övertid     "]
[{"$nulls":4},"Måndag"]
[{"$nulls":4},"Tisdag"]
[{"$nulls":4},"Onsdag"]
[{"$nulls":4},"Torsdag"]
[{"$nulls":4},"Fredag"]
[{"$nulls":4},"Lördag"]
[{"$nulls":4},"Söndag"]
[{"$nulls":4},"Totalt antal timmar per vecka",{"$f":"SUM(F47:F53)","v":{"v":0,"d":"0.0"}},{"v":0,"d":"0.0"},{"v":0,"d":"0.0"},{"v":0,"d":"0.0"},{"v":0,"d":"0.0"},{"v":0,"d":"0.0"},{"v":0,"d":"0.0"},{"v":0,"d":"0.0"},{"v":0,"d":"0.0"},{"v":0,"d":"0.0"}]
["Majs totala antal timmar ordinarie arbetstid i cell F55 och majs totala antal timmar övertid i cell I55 beräknas automatiskt. Fler anvisningar finns i cell A57.",{"$nulls":3},{"$f":"TEXT(DATEVALUE(Maj[[#Headers],[Maj]]&\" \"&YEAR(TODAY())),\"MMM.\")&\" summa: Normal arbetstid\"","v":"maj. summa: Normal arbetstid"},{"$f":"SUM(Maj[Vecka 1],Maj[Vecka 2],Maj[Vecka 3],Maj[Vecka 4],Maj[Vecka 5])","v":{"v":0,"d":"0.0"}},{"$f":"TEXT(DATEVALUE(Maj[[#Headers],[Maj]]&\" \"&YEAR(TODAY())),\"MMM.\")&\" summa: Övertid\"","v":"maj. summa: Övertid"},null,{"$f":"SUM(Maj[Övertid],Maj[[Övertid  ]],Maj[[Övertid   ]],Maj[[Övertid    ]],Maj[[Övertid     ]])","v":{"v":0,"d":"0.0"}}]
[]
["Ange timmar på ordinarie arbetstid och på övertid i tabellen för juni som börjar i cell E57. Fler anvisningar finns i cell A66.",{"$nulls":3},"Juni","Vecka 1","Övertid","Vecka 2","Övertid  ","Vecka 3","Övertid   ","Vecka 4","Övertid    ","Vecka 5","Övertid     "]
[{"$nulls":4},"Måndag"]
[{"$nulls":4},"Tisdag"]
[{"$nulls":4},"Onsdag"]
[{"$nulls":4},"Torsdag"]
[{"$nulls":4},"Fredag"]
[{"$nulls":4},"Lördag"]
[{"$nulls":4},"Söndag"]
[{"$nulls":4},"Totalt antal timmar per vecka",{"$f":"SUM(F58:F64)","v":{"v":0,"d":"0.0"}},{"v":0,"d":"0.0"},{"v":0,"d":"0.0"},{"v":0,"d":"0.0"},{"v":0,"d":"0.0"},{"v":0,"d":"0.0"},{"v":0,"d":"0.0"},{"v":0,"d":"0.0"},{"v":0,"d":"0.0"},{"v":0,"d":"0.0"}]
["Junis totala antal timmar ordinarie arbetstid i cell F66 och junis totala antal timmar övertid i cell I66 beräknas automatiskt.",{"$nulls":3},{"$f":"TEXT(DATEVALUE(Juni[[#Headers],[Juni]]&\" \"&YEAR(TODAY())),\"MMM.\")&\" summa: Normal arbetstid\"","v":"jun. summa: Normal arbetstid"},{"$f":"SUM(Juni[Vecka 1],Juni[Vecka 2],Juni[Vecka 3],Juni[Vecka 4],Juni[Vecka 5])","v":{"v":0,"d":"0.0"}},{"$f":"TEXT(DATEVALUE(Juni[[#Headers],[Juni]]&\" \"&YEAR(TODAY())),\"MMM.\")&\" summa: Övertid\"","v":"jun. summa: Övertid"},null,{"$f":"SUM(Juni[Övertid],Juni[[Övertid  ]],Juni[[Övertid   ]],Juni[[Övertid    ]],Juni[[Övertid     ]])","v":{"v":0,"d":"0.0"}}]
["Rubriken för det tredje kvartalet, juli, augusti, september, finns i E67. ",{"$nulls":3},"Juli, augusti, september      Medarbetares tidkort: Per dag, vecka, månad, år"]
["Ange timmar på ordinarie arbetstid och på övertid i tabellen för juli som börjar i cell E68. Fler anvisningar finns i cell A77.",{"$nulls":3},"Juli","Vecka 1","Övertid","Vecka 2","Övertid ","Vecka 3","Övertid  ","Vecka 4","Övertid   ","Vecka 5","Övertid     "]
[{"$nulls":4},"Måndag"]
[{"$nulls":4},"Tisdag"]
[{"$nulls":4},"Onsdag"]
[{"$nulls":4},"Torsdag"]
[{"$nulls":4},"Fredag"]
[{"$nulls":4},"Lördag"]
[{"$nulls":4},"Söndag"]
[{"$nulls":4},"Totalt antal timmar per vecka",{"$f":"SUM(F69:F75)","v":{"v":0,"d":"0.0"}},{"v":0,"d":"0.0"},{"v":0,"d":"0.0"},{"v":0,"d":"0.0"},{"v":0,"d":"0.0"},{"v":0,"d":"0.0"},{"v":0,"d":"0.0"},{"v":0,"d":"0.0"},{"v":0,"d":"0.0"},{"v":0,"d":"0.0"}]
["Julis totala antal timmar ordinarie arbetstid i cell F77 och julis totala antal timmar övertid i cell I77 beräknas automatiskt. Fler anvisningar finns i cell A79.",{"$nulls":3},{"$f":"TEXT(DATEVALUE(Juli[[#Headers],[Juli]]&\" \"&YEAR(TODAY())),\"MMM.\")&\" summa: Normal arbetstid\"","v":"jul. summa: Normal arbetstid"},{"$f":"SUM(Juli[Vecka 1],Juli[Vecka 2],Juli[Vecka 3],Juli[Vecka 4],Juli[Vecka 5])","v":{"v":0,"d":"0.0"}},{"$f":"TEXT(DATEVALUE(Juli[[#Headers],[Juli]]&\" \"&YEAR(TODAY())),\"MMM.\")&\" summa: Övertid\"","v":"jul. summa: Övertid"},null,{"$f":"SUM(Juli[Övertid],Juli[[Övertid ]],Juli[[Övertid  ]],Juli[[Övertid   ]],Juli[[Övertid     ]])","v":{"v":0,"d":"0.0"}}]
[]
["Ange timmar på ordinarie arbetstid och på övertid i tabellen för augusti som börjar i cell E79. Fler anvisningar finns i cell A88.",{"$nulls":3},"Augusti","Vecka 1","Övertid","Vecka 2","Övertid ","Vecka 3","Övertid   ","Vecka 4","Övertid  ","Vecka 5","Övertid    "]
[{"$nulls":4},"Måndag"]
[{"$nulls":4},"Tisdag"]
[{"$nulls":4},"Onsdag"]
[{"$nulls":4},"Torsdag"]
[{"$nulls":4},"Fredag"]
[{"$nulls":4},"Lördag"]
[{"$nulls":4},"Söndag"]
[{"$nulls":4},"Totalt antal timmar per vecka",{"$f":"SUBTOTAL(109,Augusti[Vecka 1])","v":{"v":0,"d":"0.0"}},{"$f":"SUBTOTAL(109,Augusti[Övertid])","v":{"v":0,"d":"0.0"}},{"$f":"SUBTOTAL(109,Augusti[Vecka 2])","v":{"v":0,"d":"0.0"}},{"$f":"SUBTOTAL(109,Augusti[[Övertid ]])","v":{"v":0,"d":"0.0"}},{"$f":"SUBTOTAL(109,Augusti[Vecka 3])","v":{"v":0,"d":"0.0"}},{"$f":"SUBTOTAL(109,Augusti[[Övertid   ]])","v":{"v":0,"d":"0.0"}},{"$f":"SUBTOTAL(109,Augusti[Vecka 4])","v":{"v":0,"d":"0.0"}},{"$f":"SUBTOTAL(109,Augusti[[Övertid  ]])","v":{"v":0,"d":"0.0"}},{"$f":"SUBTOTAL(109,Augusti[Vecka 5])","v":{"v":0,"d":"0.0"}},{"$f":"SUBTOTAL(109,Augusti[[Övertid    ]])","v":{"v":0,"d":"0.0"}}]
["Augustis totala antal timmar ordinarie arbetstid i cell F88 och augustis totala antal timmar övertid i cell I88 beräknas automatiskt. Fler anvisningar finns i cell A90.",{"$nulls":3},{"$f":"TEXT(DATEVALUE(Augusti[[#Headers],[Augusti]]&\" \"&YEAR(TODAY())),\"MMM.\")&\" summa: Normal arbetstid\"","v":"aug. summa: Normal arbetstid"},{"$f":"SUM(Augusti[Vecka 1],Augusti[Vecka 2],Augusti[Vecka 3],Augusti[Vecka 4],Augusti[Vecka 5])","v":{"v":0,"d":"0.0"}},{"$f":"TEXT(DATEVALUE(Augusti[[#Headers],[Augusti]]&\" \"&YEAR(TODAY())),\"MMM.\")&\" summa: Övertid\"","v":"aug. summa: Övertid"},null,{"$f":"SUM(Augusti[Övertid],Augusti[[Övertid ]],Augusti[[Övertid   ]],Augusti[[Övertid  ]],Augusti[[Övertid    ]])","v":{"v":0,"d":"0.0"}}]
[]
["Ange timmar på ordinarie arbetstid och på övertid i tabellen för september som börjar i cell E90. Fler anvisningar finns i cell A99.",{"$nulls":3},"September","Vecka 1","Övertid","Vecka 2","Övertid ","Vecka 3","Övertid  ","Vecka 4","Övertid   ","Vecka 5","Övertid    "]
[{"$nulls":4},"Måndag"]
[{"$nulls":4},"Tisdag"]
[{"$nulls":4},"Onsdag"]
[{"$nulls":4},"Torsdag"]
[{"$nulls":4},"Fredag"]
[{"$nulls":4},"Lördag"]
[{"$nulls":4},"Söndag"]
[{"$nulls":4},"Totalt antal timmar per vecka",{"$f":"SUBTOTAL(109,September[Vecka 1])","v":{"v":0,"d":"0.0"}},{"$f":"SUBTOTAL(109,September[Övertid])","v":{"v":0,"d":"0.0"}},{"$f":"SUBTOTAL(109,September[Vecka 2])","v":{"v":0,"d":"0.0"}},{"$f":"SUBTOTAL(109,September[[Övertid ]])","v":{"v":0,"d":"0.0"}},{"$f":"SUBTOTAL(109,September[Vecka 3])","v":{"v":0,"d":"0.0"}},{"$f":"SUBTOTAL(109,September[[Övertid  ]])","v":{"v":0,"d":"0.0"}},{"$f":"SUBTOTAL(109,September[Vecka 4])","v":{"v":0,"d":"0.0"}},{"$f":"SUBTOTAL(109,September[[Övertid   ]])","v":{"v":0,"d":"0.0"}},{"$f":"SUBTOTAL(109,September[Vecka 5])","v":{"v":0,"d":"0.0"}},{"$f":"SUBTOTAL(109,September[[Övertid    ]])","v":{"v":0,"d":"0.0"}}]
["Septembers totala antal timmar ordinarie arbetstid i cell F99 och septembers totala antal timmar övertid i cell I99 beräknas automatiskt.",{"$nulls":3},{"$f":"TEXT(DATEVALUE(September[[#Headers],[September]]&\" \"&YEAR(TODAY())),\"MMM.\")&\" summa: Normal arbetstid\"","v":"sep. summa: Normal arbetstid"},{"$f":"SUM(September[Vecka 1],September[Vecka 2],September[Vecka 3],September[Vecka 4],September[Vecka 5])","v":{"v":0,"d":"0.0"}},{"$f":"TEXT(DATEVALUE(September[[#Headers],[September]]&\" \"&YEAR(TODAY())),\"MMM.\")&\" summa: Övertid\"","v":"sep. summa: Övertid"},null,{"$f":"SUM(September[Övertid],September[[Övertid ]],September[[Övertid  ]],September[[Övertid   ]],September[[Övertid    ]])","v":{"v":0,"d":"0.0"}}]
["Rubriken för det fjärde kvartalet, oktober, november, december, finns i E100. ",{"$nulls":3},"Oktober, november, december      Medarbetares tidkort: Per dag, vecka, månad, år"]
["Ange timmar på ordinarie arbetstid och på övertid i tabellen för oktober som börjar i cell E101. Fler anvisningar finns i cell A110.",{"$nulls":3},"Oktober","Vecka 1","Övertid","Vecka 2","Övertid ","Vecka 3","Övertid  ","Vecka 4","Övertid   ","Vecka 5","Övertid    "]
[{"$nulls":4},"Måndag"]
[{"$nulls":4},"Tisdag"]
[{"$nulls":4},"Onsdag"]
[{"$nulls":4},"Torsdag"]
[{"$nulls":4},"Fredag"]
[{"$nulls":4},"Lördag"]
[{"$nulls":4},"Söndag"]
[{"$nulls":4},"Totalt antal timmar per vecka",{"$f":"SUBTOTAL(109,Oktober[Vecka 1])","v":{"v":0,"d":"0.0"}},{"$f":"SUBTOTAL(109,Oktober[Övertid])","v":{"v":0,"d":"0.0"}},{"$f":"SUBTOTAL(109,Oktober[Vecka 2])","v":{"v":0,"d":"0.0"}},{"$f":"SUBTOTAL(109,Oktober[[Övertid ]])","v":{"v":0,"d":"0.0"}},{"$f":"SUBTOTAL(109,Oktober[Vecka 3])","v":{"v":0,"d":"0.0"}},{"$f":"SUBTOTAL(109,Oktober[[Övertid  ]])","v":{"v":0,"d":"0.0"}},{"$f":"SUBTOTAL(109,Oktober[Vecka 4])","v":{"v":0,"d":"0.0"}},{"$f":"SUBTOTAL(109,Oktober[[Övertid   ]])","v":{"v":0,"d":"0.0"}},{"$f":"SUBTOTAL(109,Oktober[Vecka 5])","v":{"v":0,"d":"0.0"}},{"$f":"SUBTOTAL(109,Oktober[[Övertid    ]])","v":{"v":0,"d":"0.0"}}]
["Oktobers totala antal timmar ordinarie arbetstid i cell F110 och oktobers totala antal timmar övertid i cell I110 beräknas automatiskt. Fler anvisningar finns i cell A112.",{"$nulls":3},{"$f":"TEXT(DATEVALUE(Oktober[[#Headers],[Oktober]]&\" \"&YEAR(TODAY())),\"MMM.\")&\" summa: Normal arbetstid\"","v":"okt. summa: Normal arbetstid"},{"$f":"SUM(Oktober[Vecka 1],Oktober[Vecka 2],Oktober[Vecka 3],Oktober[Vecka 4],Oktober[Vecka 5])","v":{"v":0,"d":"0.0"}},{"$f":"TEXT(DATEVALUE(Oktober[[#Headers],[Oktober]]&\" \"&YEAR(TODAY())),\"MMM.\")&\" summa: Övertid\"","v":"okt. summa: Övertid"},null,{"$f":"SUM(Oktober[Övertid],Oktober[[Övertid ]],Oktober[[Övertid  ]],Oktober[[Övertid   ]],Oktober[[Övertid    ]])","v":{"v":0,"d":"0.0"}}]
[]
["Ange timmar på ordinarie arbetstid och på övertid i tabellen för november som börjar i cell E112. Fler anvisningar finns i cell A121.",{"$nulls":3},"November","Vecka 1","Övertid","Vecka 2","Övertid ","Vecka 3","Övertid  ","Vecka 4","Övertid    ","Vecka 5","Övertid     "]
[{"$nulls":4},"Måndag"]
[{"$nulls":4},"Tisdag"]
[{"$nulls":4},"Onsdag"]
[{"$nulls":4},"Torsdag"]
[{"$nulls":4},"Fredag"]
[{"$nulls":4},"Lördag"]
[{"$nulls":4},"Söndag"]
[{"$nulls":4},"Totalt antal timmar per vecka",{"$f":"SUBTOTAL(109,November[Vecka 1])","v":{"v":0,"d":"0.0"}},{"$f":"SUBTOTAL(109,November[Övertid])","v":{"v":0,"d":"0.0"}},{"$f":"SUBTOTAL(109,November[Vecka 2])","v":{"v":0,"d":"0.0"}},{"$f":"SUBTOTAL(109,November[[Övertid ]])","v":{"v":0,"d":"0.0"}},{"$f":"SUBTOTAL(109,November[Vecka 3])","v":{"v":0,"d":"0.0"}},{"$f":"SUBTOTAL(109,November[[Övertid  ]])","v":{"v":0,"d":"0.0"}},{"$f":"SUBTOTAL(109,November[Vecka 4])","v":{"v":0,"d":"0.0"}},{"$f":"SUBTOTAL(109,November[[Övertid    ]])","v":{"v":0,"d":"0.0"}},{"$f":"SUBTOTAL(109,November[Vecka 5])","v":{"v":0,"d":"0.0"}},{"$f":"SUBTOTAL(109,November[[Övertid     ]])","v":{"v":0,"d":"0.0"}}]
["Novembers totala antal timmar ordinarie arbetstid i cell F121 och novembers totala antal timmar övertid i cell I121 beräknas automatiskt. Fler anvisningar finns i cell A123.",{"$nulls":3},{"$f":"TEXT(DATEVALUE(November[[#Headers],[November]]&\" \"&YEAR(TODAY())),\"MMM.\")&\" summa: Normal arbetstid\"","v":"nov. summa: Normal arbetstid"},{"$f":"SUM(November[Vecka 1],November[Vecka 2],November[Vecka 3],November[Vecka 4],November[Vecka 5])","v":{"v":0,"d":"0.0"}},{"$f":"TEXT(DATEVALUE(November[[#Headers],[November]]&\" \"&YEAR(TODAY())),\"MMM.\")&\" summa: Övertid\"","v":"nov. summa: Övertid"},null,{"$f":"SUM(November[Övertid],November[[Övertid ]],November[[Övertid  ]],November[[Övertid    ]],November[[Övertid     ]])","v":{"v":0,"d":"0.0"}}]
[]
["Ange timmar på ordinarie arbetstid och på övertid i tabellen för december som börjar i cell E123. Fler anvisningar finns i cell A132.",{"$nulls":3},"December","Vecka 1","Övertid","Vecka 2","Övertid ","Vecka 3","Övertid  ","Vecka 4","Övertid   ","Vecka 5","Övertid    "]
[{"$nulls":4},"Måndag"]
[{"$nulls":4},"Tisdag"]
[{"$nulls":4},"Onsdag"]
[{"$nulls":4},"Torsdag"]
[{"$nulls":4},"Fredag"]
[{"$nulls":4},"Lördag"]
[{"$nulls":4},"Söndag"]
[{"$nulls":4},"Totalt antal timmar per vecka",{"$f":"SUBTOTAL(109,December[Vecka 1])","v":{"v":0,"d":"0.0"}},{"$f":"SUBTOTAL(109,December[Övertid])","v":{"v":0,"d":"0.0"}},{"$f":"SUBTOTAL(109,December[Vecka 2])","v":{"v":0,"d":"0.0"}},{"$f":"SUBTOTAL(109,December[[Övertid ]])","v":{"v":0,"d":"0.0"}},{"$f":"SUBTOTAL(109,December[Vecka 3])","v":{"v":0,"d":"0.0"}},{"$f":"SUBTOTAL(109,December[[Övertid  ]])","v":{"v":0,"d":"0.0"}},{"$f":"SUBTOTAL(109,December[Vecka 4])","v":{"v":0,"d":"0.0"}},{"$f":"SUBTOTAL(109,December[[Övertid   ]])","v":{"v":0,"d":"0.0"}},{"$f":"SUBTOTAL(109,December[Vecka 5])","v":{"v":0,"d":"0.0"}},{"$f":"SUBTOTAL(109,December[[Övertid    ]])","v":{"v":0,"d":"0.0"}}]
["Decembers totala antal timmar ordinarie arbetstid i cell F132 och decembers totala antal timmar övertid i cell I132 beräknas automatiskt.",{"$nulls":3},{"$f":"TEXT(DATEVALUE(December[[#Headers],[December]]&\" \"&YEAR(TODAY())),\"MMM.\")&\" summa: Normal arbetstid\"","v":"dec. summa: Normal arbetstid"},{"$f":"SUM(December[Vecka 1],December[Vecka 2],December[Vecka 3],December[Vecka 4],December[Vecka 5])","v":{"v":0,"d":"0.0"}},{"$f":"TEXT(DATEVALUE(December[[#Headers],[December]]&\" \"&YEAR(TODAY())),\"MMM.\")&\" summa: Övertid\"","v":"dec. summa: Övertid"},null,{"$f":"SUM(G124:G130,I124:I130,K124:K130,M124:M130,O124:O130)","v":{"v":0,"d":"0.0"}}]